bitfinex/quotes_BTCUSD_20241003
["timestamp","ask_amount","ask_price","bid_price","bid_amount"]
[1727991596123,0.33784072,60891.0,60882.0,0.24634789]
[1727991596790,0.34984072,60891.0,60882.0,0.24634789]
[1727991597248,0.62579695,60891.0,60882.0,0.24634789]
[1727991597971,0.61679695,60891.0,60882.0,0.24634789]
[1727991598426,0.62679695,60891.0,60882.0,0.24634789]
[1727991598923,0.63679695,60891.0,60882.0,0.24634789]
[1727991599174,0.91295744,60891.0,60881.0,0.0002]
[1727991599398,0.91295744,60891.0,60883.0,0.24634789]
[1727991599623,0.75173352,60891.0,60883.0,0.24634789]
[1727991600107,0.73173352,60891.0,60883.0,0.24634789]
[1727991600344,0.428499,60883.0,60881.0,0.0002]
[1727991600575,0.264252,60882.0,60881.0,0.0002]
[1727991600839,0.31328969,60882.0,60881.0,0.0002]
[1727991601084,0.33780752,60882.0,60881.0,0.0002]
[1727991601310,0.264252,60882.0,60881.0,0.0002]
[1727991603260,0.277252,60882.0,60881.0,0.0002]
[1727991603505,0.277252,60882.0,60881.0,0.1669]
[1727991603748,0.264252,60882.0,60881.0,0.17464368]
[1727991603993,0.173252,60882.0,60881.0,0.17464368]
[1727991604243,0.164252,60882.0,60881.0,0.1669]
[1727991604720,0.009,60882.0,60881.0,0.1669]
[1727991604946,0.164249,60883.0,60882.0,0.1667]
[1727991605437,0.164249,60883.0,60882.0,0.1744426]
[1727991606857,0.165249,60883.0,60882.0,0.1744426]
[1727991607570,0.164249,60883.0,60882.0,0.1744426]
[1727991607832,0.165249,60883.0,60882.0,0.1744426]
[1727991611085,0.164249,60883.0,60882.0,0.1744426]
[1727991619734,0.164249,60883.0,60882.0,0.1752616]
[1727991627728,0.21348205,60885.0,60882.0,0.1752616]
[1727991627968,0.21348205,60885.0,60883.0,0.0808]
[1727991627969,0.164247,60884.0,60883.0,0.0808]
[1727991628310,0.21348305,60884.0,60883.0,0.08849087]
[1727991629344,0.164247,60884.0,60883.0,0.08849087]
[1727991629970,0.23810108,60884.0,60883.0,0.08849087]
[1727991633046,0.23973908,60884.0,60883.0,0.08849087]
[1727991633278,0.26435711,60884.0,60883.0,0.08849087]
[1727991633517,0.48218276,60884.0,60883.0,0.08849087]
[1727991635862,0.38371065,60884.0,60883.0,0.08849087]
[1727991642113,0.23982584,60884.0,60883.0,0.08849087]
[1727991646336,0.23982584,60884.0,60883.0,0.08930987]
[1727991647751,0.48233716,60884.0,60883.0,0.08930987]
[1727991648012,0.38386505,60884.0,60883.0,0.08930987]
[1727991648249,0.48233716,60884.0,60883.0,0.08930987]
[1727991649602,0.38386505,60884.0,60883.0,0.08930987]
[1727991649859,0.48254287,60884.0,60883.0,0.08930987]
[1727991651685,0.38386505,60884.0,60883.0,0.08930987]
[1727991653782,0.50722184,60884.0,60883.0,0.08930987]
[1727991661259,0.4825638,60884.0,60883.0,0.08930987]
[1727991661493,0.38386505,60884.0,60883.0,0.08930987]
[1727991661724,0.48256401,60884.0,60883.0,0.08930987]
[1727991673555,0.38386505,60884.0,60883.0,0.08930987]
[1727991674035,0.38386505,60884.0,60883.0,0.081619]
[1727991674955,0.38386505,60884.0,60883.0,0.08927376]
[1727991676365,0.48256229,60884.0,60883.0,0.08927376]
[1727991678529,0.38386505,60884.0,60883.0,0.08927376]
[1727991678767,0.50722184,60884.0,60883.0,0.08927376]
[1727991680382,0.38386505,60884.0,60883.0,0.08927376]
[1727991681556,0.21961805,60884.0,60883.0,0.08927376]
[1727991682760,0.38386405,60884.0,60883.0,0.08927376]
[1727991683473,0.21961805,60884.0,60883.0,0.08927376]
[1727991684396,0.31832266,60884.0,60883.0,0.08927376]
[1727991684651,0.21961805,60884.0,60883.0,0.08927376]
[1727991684870,0.10034411,60884.0,60883.0,0.08927376]
[1727991685088,0.31832416,60884.0,60883.0,0.08927376]
[1727991686039,0.21961805,60884.0,60883.0,0.08927376]
[1727991686247,0.10034582,60884.0,60883.0,0.08927376]
[1727991686483,0.31832587,60884.0,60883.0,0.08927376]
[1727991686687,0.21961805,60884.0,60883.0,0.08927376]
[1727991686917,0.001638,60884.0,60883.0,0.08927376]
[1727991687125,0.10034825,60884.0,60883.0,0.08927376]
[1727991687358,0.31835884,60884.0,60883.0,0.08927376]
[1727991689592,0.21964859,60884.0,60883.0,0.08927376]
[1727991691333,0.34303641,60884.0,60883.0,0.08927376]
[1727991692084,0.34303307,60884.0,60883.0,0.08927376]
[1727991698922,0.50727907,60884.0,60883.0,0.08927376]
[1727991701892,0.50720871,60884.0,60883.0,0.08927376]
[1727991710963,0.05099305,60884.0,60883.0,0.51560947]
[1727991711206,0.001638,60884.0,60883.0,0.63816969]
[1727991712157,0.001638,60884.0,60883.0,0.64233288]
[1727991712388,0.001638,60884.0,60883.0,0.66533288]
[1727991713104,0.002638,60884.0,60883.0,0.66533288]
[1727991713564,0.003638,60884.0,60883.0,0.66533288]
[1727991713791,0.001638,60884.0,60883.0,0.66533288]
[1727991714273,0.002638,60884.0,60883.0,0.66533288]
[1727991726511,0.002638,60884.0,60883.0,0.54277266]
[1727991726741,0.002638,60884.0,60883.0,0.66533288]
[1727991729591,0.002638,60884.0,60883.0,0.66733288]
[1727991729821,0.002638,60884.0,60883.0,0.66533288]
[1727991731469,0.002638,60884.0,60883.0,0.66733288]
[1727991736550,0.002638,60884.0,60883.0,0.66533288]
[1727991753976,0.002638,60884.0,60883.0,0.83833288]
[1727991754207,0.002638,60884.0,60883.0,0.66533288]
[1727991797984,0.001638,60884.0,60883.0,0.66533288]
[1727991798195,0.002638,60884.0,60883.0,0.66533288]
[1727991799109,0.001638,60884.0,60883.0,0.66533288]
[1727991799337,0.002638,60884.0,60883.0,0.66533288]
[1727991801171,0.001638,60884.0,60883.0,0.66533288]
[1727991801413,0.002638,60884.0,60883.0,0.66533288]
[1727991802110,0.003638,60884.0,60883.0,0.66533288]
[1727991802808,0.003638,60884.0,60883.0,0.54277266]
[1727991803029,0.096538,60884.0,60883.0,0.17272276]
[1727991803784,0.39072896,60884.0,60883.0,0.00847376]
[1727991803999,0.341384,60884.0,60883.0,0.00847376]
[1727991804263,0.41340144,60884.0,60883.0,0.000819]
[1727991804737,0.339384,60884.0,60883.0,0.00973453]
[1727991804976,0.41438995,60884.0,60883.0,0.00973453]
[1727991805673,0.341384,60884.0,60883.0,0.00973453]
[1727991805893,0.339384,60884.0,60883.0,0.00973453]
[1727991806116,0.340384,60884.0,60883.0,0.000819]
[1727991806633,0.3896802,60884.0,60883.0,0.000819]
[1727991807300,0.38967957,60884.0,60883.0,0.000819]
[1727991807740,0.340384,60884.0,60883.0,0.000819]
[1727991807961,0.339384,60884.0,60883.0,0.000819]
[1727991808410,0.340384,60884.0,60883.0,0.000819]
[1727991808884,0.339384,60884.0,60883.0,0.000819]
[1727991809094,0.340384,60884.0,60883.0,0.000819]
[1727991815093,0.259784,60884.0,60883.0,0.000819]
[1727991817311,0.166884,60884.0,60883.0,0.000819]
[1727991817539,0.166884,60884.0,60883.0,0.12337922]
[1727991825680,0.166884,60884.0,60883.0,0.13243576]
[1727991827724,0.166884,60884.0,60883.0,0.12337922]
[1727991831768,0.166884,60884.0,60883.0,0.13306891]
[1727991833646,0.166884,60884.0,60883.0,0.01050869]
[1727991834092,0.166884,60884.0,60883.0,0.000819]
[1727991834782,0.165884,60884.0,60883.0,0.000819]
[1727991835248,0.166884,60884.0,60883.0,0.000819]
[1727991835472,0.21617957,60884.0,60883.0,0.000819]
[1727991836139,0.24192587,60884.0,60883.0,0.000819]
[1727991836604,0.1926303,60884.0,60883.0,0.000819]
[1727991837106,0.166884,60884.0,60883.0,0.000819]
[1727991837326,0.21612737,60884.0,60883.0,0.000819]
[1727991837541,0.166884,60884.0,60883.0,0.000819]
[1727991839703,0.24082736,60884.0,60883.0,0.000819]
[1727991840408,0.55980406,60884.0,60883.0,0.000819]
[1727991841152,0.65550406,60884.0,60883.0,0.000819]
[1727991841375,0.68015185,60884.0,60883.0,0.000819]
[1727991841621,0.65420145,60884.0,60883.0,0.000819]
[1727991842072,0.65320145,60884.0,60883.0,0.000819]
[1727991842830,0.55750145,60884.0,60883.0,0.000819]
[1727991845412,0.73710145,60884.0,60883.0,0.000819]
[1727991845645,0.61392027,60884.0,60883.0,0.000819]
[1727991848866,0.61492027,60884.0,60883.0,0.000819]
[1727991849092,0.64066724,60884.0,60883.0,0.000819]
[1727991850286,0.61492027,60884.0,60883.0,0.000819]
[1727991851015,0.61439403,60884.0,60883.0,0.000819]
[1727991852243,0.61339403,60884.0,60883.0,0.000819]
[1727991852468,0.61839403,60884.0,60883.0,0.000819]
[1727991852941,0.62439403,60884.0,60883.0,0.000819]
[1727991853179,0.61939403,60884.0,60883.0,0.000819]
[1727991853650,0.62339403,60884.0,60883.0,0.000819]
[1727991853893,0.61739403,60884.0,60883.0,0.000819]
[1727991855514,0.62139403,60884.0,60883.0,0.000819]
[1727991856009,0.61339403,60884.0,60883.0,0.000819]
[1727991856233,0.61739403,60884.0,60883.0,0.000819]
[1727991856940,0.61739403,60884.0,60880.0,0.000818]
[1727991856941,0.346354,60881.0,60880.0,0.000818]
[1727991857155,0.65526403,60881.0,60880.0,0.000818]
[1727991857691,0.95513682,60881.0,60880.0,0.000818]
[1727991857930,0.98088905,60881.0,60880.0,0.000818]
[1727991858858,0.99488905,60881.0,60880.0,0.000818]
[1727991859118,1.08320303,60881.0,60880.0,0.000818]
[1727991859342,1.09720303,60881.0,60880.0,0.000818]
[1727991859570,1.08320303,60881.0,60880.0,0.000818]
[1727991860036,1.09720303,60881.0,60880.0,0.000818]
[1727991860455,1.0948177,60881.0,60880.0,0.000818]
[1727991861594,1.0898177,60881.0,60880.0,1e-06]
[1727991861835,1.1038177,60881.0,60880.0,1e-06]
[1727991862295,0.283392,60867.0,60866.0,0.0167534]
[1727991862553,0.59500365,60867.0,60866.0,0.0167534]
[1727991863479,0.283392,60867.0,60866.0,0.0167534]
[1727991864396,0.35716936,60867.0,60866.0,0.0167534]
[1727991864838,0.36416936,60867.0,60866.0,0.0167534]
[1727991865079,0.35716936,60867.0,60866.0,0.0167534]
[1727991865548,0.36516936,60867.0,60866.0,0.0167534]
[1727991865779,0.3909232,60867.0,60866.0,0.0167534]
[1727991866455,0.31714584,60867.0,60866.0,0.0167534]
[1727991866670,0.291392,60867.0,60866.0,0.0167534]
[1727991866902,0.36516936,60867.0,60866.0,0.0167534]
[1727991867579,0.36514404,60867.0,60866.0,0.0167534]
[1727991867852,0.24604404,60867.0,60866.0,0.0167534]
[1727991868504,0.164292,60867.0,60866.0,0.0167534]
[1727991868737,0.173292,60867.0,60866.0,0.0167534]
[1727991868956,0.164292,60867.0,60866.0,0.0167534]
[1727991869177,0.175292,60867.0,60866.0,0.0167534]
[1727991869401,0.22444146,60867.0,60866.0,0.0167534]
[1727991870093,0.22444115,60867.0,60866.0,0.0167534]
[1727991870585,0.40044115,60867.0,60866.0,0.0167534]
[1727991871764,0.31974115,60867.0,60866.0,0.0167534]
[1727991874364,0.34549525,60867.0,60866.0,0.0167534]
[1727991874826,0.34547438,60867.0,60866.0,0.0167534]
[1727991875023,0.33447438,60867.0,60866.0,0.0167534]
[1727991875275,0.34647438,60867.0,60866.0,0.0167534]
[1727991875525,0.25117438,60867.0,60866.0,0.0167534]
[1727991876013,0.26217438,60867.0,60866.0,0.0167534]
[1727991876246,0.42521098,60867.0,60866.0,0.0167534]
[1727991876479,0.52520937,60867.0,60866.0,0.0167534]
[1727991876712,0.60046593,60867.0,60866.0,0.0167534]
[1727991876934,0.61246593,60867.0,60866.0,0.0167534]
[1727991878471,0.66597851,60867.0,60866.0,0.0167534]
[1727991879659,0.66586682,60867.0,60866.0,0.0167534]
[1727991880918,0.64011272,60867.0,60866.0,0.0167534]
[1727991883472,0.54186435,60867.0,60866.0,0.0167534]
[1727991884157,0.56761859,60867.0,60866.0,0.0167534]
[1727991885295,0.54186435,60867.0,60866.0,0.0167534]
[1727991885515,0.66467481,60867.0,60866.0,0.0167534]
[1727991888204,0.69042913,60867.0,60866.0,0.0167534]
[1727991889335,0.69026036,60867.0,60866.0,0.0167534]
[1727991890426,0.56751391,60867.0,60866.0,0.0167534]
[1727991892965,0.54175959,60867.0,60866.0,0.0167534]
[1727991894339,0.54195224,60867.0,60866.0,0.0167534]
[1727991895950,0.56770699,60867.0,60866.0,0.0167534]
[1727991896426,0.71513299,60867.0,60866.0,0.0167534]
[1727991897314,0.68937824,60867.0,60866.0,0.0167534]
[1727991898477,0.54195224,60867.0,60866.0,0.0167534]
[1727991898721,0.83861027,60867.0,60866.0,0.0167534]
[1727991898957,0.54195224,60867.0,60866.0,0.0167534]
[1727991900650,0.56770699,60867.0,60866.0,0.0167534]
[1727991901147,0.86436502,60867.0,60866.0,0.0167534]
[1727991901413,0.56770699,60867.0,60866.0,0.1861534]
[1727991901662,0.54195224,60867.0,60866.0,0.1861534]
[1727991902148,0.52015112,60867.0,60866.0,0.1861534]
[1727991902881,0.50815112,60867.0,60866.0,0.1861534]
[1727991903362,0.42015112,60867.0,60866.0,0.1861534]
[1727991903538,0.35463854,60867.0,60866.0,0.1861534]
[1727991903786,0.47776566,60867.0,60866.0,0.19454099]
[1727991904027,0.48276566,60867.0,60866.0,0.19454099]
[1727991904935,0.5085186,60867.0,60866.0,0.19454099]
[1727991905161,0.38539148,60867.0,60866.0,0.19454099]
[1727991906101,0.38039148,60867.0,60866.0,0.19454099]
[1727991906318,0.47888176,60867.0,60866.0,0.19454099]
[1727991906554,0.45312882,60867.0,60866.0,0.19454099]
[1727991906976,0.14249088,60867.0,60866.0,0.19454099]
[1727991907194,0.454297,60867.0,60866.0,0.19454099]
[1727991907415,0.35581612,60867.0,60866.0,0.19454099]
[1727991907871,0.14249088,60867.0,60866.0,0.19454099]
[1727991909505,0.21633548,60867.0,60866.0,0.19454099]
[1727991911748,0.14249088,60867.0,60866.0,0.19454099]
[1727991911971,0.21631551,60867.0,60866.0,0.19454099]
[1727991912408,0.14249088,60867.0,60866.0,0.19454099]
[1727991913108,0.14412688,60867.0,60866.0,0.19454099]
[1727991914498,0.19333347,60867.0,60866.0,0.19454099]
[1727991920250,0.14412688,60867.0,60866.0,0.19454099]
[1727991937452,0.19327368,60867.0,60866.0,0.19454099]
[1727991940444,0.14412688,60867.0,60866.0,0.19454099]
[1727991942447,0.21784709,60867.0,60866.0,0.1861534]
[1727991942657,0.21784709,60867.0,60866.0,0.19472945]
[1727991944414,0.4545874,60867.0,60866.0,0.19472945]
[1727991945461,0.35629379,60867.0,60866.0,0.19472945]
[1727991947413,0.4791608,60867.0,60866.0,0.19472945]
[1727991948564,0.35629379,60867.0,60866.0,0.19472945]
[1727991950521,0.35652122,60867.0,60866.0,0.19472945]
[1727991959601,0.33718687,60867.0,60866.0,0.19472945]
[1727991959933,0.21403034,60867.0,60866.0,0.19472945]
[1727991960251,0.21368103,60867.0,60866.0,0.19472945]
[1727991960484,0.37797303,60867.0,60866.0,0.19472945]
[1727991961474,0.47647541,60867.0,60866.0,0.19472945]
[1727991962371,0.31218341,60867.0,60866.0,0.35791616]
[1727991962590,0.05088381,60867.0,60866.0,0.35791616]
[1727991962813,0.001636,60867.0,60866.0,0.52221116]
[1727991963488,0.001636,60867.0,60866.0,0.64477138]
[1727991967902,0.002636,60867.0,60866.0,0.64477138]
[1727991982727,0.002636,60867.0,60866.0,0.66777138]
[1727992024351,0.002636,60867.0,60866.0,0.54881116]
[1727992034996,0.002636,60867.0,60866.0,0.54969184]
[1727992041245,0.002636,60867.0,60866.0,0.599]
[1727992043295,0.002636,60867.0,60866.0,0.54969184]
[1727992072872,0.002636,60867.0,60866.0,0.6989888]
[1727992073553,0.002636,60867.0,60866.0,0.69898499]
[1727992076110,0.002636,60867.0,60866.0,0.69897373]
[1727992078480,0.002636,60867.0,60866.0,0.69896495]
[1727992079610,0.002636,60867.0,60866.0,0.70396495]
[1727992079845,0.002636,60867.0,60866.0,0.65469184]
[1727992082394,0.003636,60867.0,60866.0,0.66069184]
[1727992082871,0.003636,60867.0,60866.0,0.75923806]
[1727992082872,0.002636,60867.0,60866.0,0.75923806]
[1727992083115,0.003636,60867.0,60866.0,0.76123806]
[1727992084112,0.002636,60867.0,60866.0,0.75523806]
[1727992084341,0.003636,60867.0,60866.0,0.76823806]
[1727992085266,0.003636,60867.0,60866.0,0.74357885]
[1727992091285,0.003636,60867.0,60866.0,0.66969184]
[1727992092648,0.003636,60867.0,60866.0,0.74351412]
[1727992093318,0.003636,60867.0,60866.0,0.67669184]
[1727992093731,0.003636,60867.0,60866.0,0.67469184]
[1727992093958,0.003636,60867.0,60866.0,0.77312155]
[1727992094429,0.003636,60867.0,60866.0,0.67469184]
[1727992095547,0.003636,60867.0,60866.0,0.67669184]
[1727992099297,0.003636,60867.0,60866.0,0.77503056]
[1727992099509,0.003636,60867.0,60866.0,0.77303056]
[1727992099706,0.003636,60867.0,60866.0,0.77503056]
[1727992100490,0.003636,60867.0,60866.0,0.67669184]
[1727992101562,0.003636,60867.0,60866.0,0.77501324]
[1727992107260,0.003636,60867.0,60866.0,0.67669184]
[1727992110055,0.003636,60867.0,60866.0,0.67469184]
[1727992110270,0.003636,60867.0,60866.0,0.67669184]
[1727992115129,0.003636,60867.0,60866.0,0.67469184]
[1727992115557,0.003636,60867.0,60866.0,0.67669184]
[1727992116166,0.002636,60867.0,60866.0,0.66369184]
[1727992116377,0.001636,60867.0,60866.0,0.66169184]
[1727992116549,0.001636,60867.0,60866.0,0.67369184]
[1727992116777,0.003636,60867.0,60866.0,0.68669184]
[1727992118181,0.002636,60867.0,60866.0,0.67369184]
[1727992118589,0.002636,60867.0,60866.0,0.68769184]
[1727992118789,0.002636,60867.0,60866.0,0.68569184]
[1727992119248,0.002636,60867.0,60866.0,0.68769184]
[1727992122442,0.002636,60867.0,60866.0,0.67911579]
[1727992122643,0.002636,60867.0,60866.0,0.6879884]
[1727992127025,0.002636,60867.0,60866.0,1.3879884]
[1727992130268,0.002636,60867.0,60866.0,0.6879884]
[1727992130946,0.002636,60867.0,60866.0,0.6859884]
[1727992131166,0.002636,60867.0,60866.0,0.81054862]
[1727992133228,0.002636,60867.0,60866.0,1.3879884]
[1727992133454,0.002636,60867.0,60866.0,1.51054862]
[1727992134606,0.001636,60880.0,60874.0,0.005]
[1727992134837,0.001636,60880.0,60879.0,0.28682022]
[1727992135061,0.001636,60880.0,60879.0,0.481849]
[1727992136387,0.001636,60880.0,60879.0,0.492849]
[1727992137515,0.001636,60880.0,60879.0,0.499849]
[1727992143674,0.001636,60880.0,60879.0,0.504077]
[1727992174013,0.001636,60880.0,60879.0,0.38151678]
[1727992176086,0.001636,60880.0,60879.0,0.45811678]
[1727992193154,0.001636,60880.0,60879.0,0.55351678]
[1727992200055,0.001636,60880.0,60879.0,0.60265963]
[1727992200688,0.001636,60880.0,60879.0,0.55351678]
[1727992200915,0.001636,60880.0,60879.0,0.676077]
[1727992234580,0.001636,60880.0,60879.0,0.504077]
[1727992235268,0.001636,60880.0,60879.0,0.38151678]
[1727992235483,0.001636,60880.0,60879.0,0.504077]
[1727992237697,0.001636,60880.0,60879.0,0.481077]
[1727992237906,0.001636,60880.0,60879.0,0.35851678]
[1727992239396,0.46988407,60886.0,60879.0,0.19425678]
[1727992239611,0.46987389,60886.0,60884.0,0.164245]
[1727992240052,0.049352,60885.0,60884.0,0.164245]
[1727992240702,0.225252,60885.0,60881.0,0.328507]
[1727992240882,0.225252,60885.0,60884.0,0.164246]
[1727992241300,0.225252,60885.0,60884.0,0.166246]
[1727992241723,0.225252,60885.0,60884.0,0.002]
[1727992241933,0.225252,60885.0,60884.0,0.166246]
[1727992242593,0.225252,60885.0,60884.0,0.002]
[1727992242795,0.389496,60885.0,60884.0,0.008]
[1727992243011,0.389496,60885.0,60884.0,0.01592712]
[1727992243243,0.389496,60885.0,60884.0,0.008]
[1727992243682,0.389496,60885.0,60884.0,0.01392754]
[1727992243899,0.55063569,60885.0,60884.0,0.007]
[1727992244105,0.60434124,60885.0,60884.0,0.007]
[1727992244332,0.60434124,60885.0,60884.0,0.006]
[1727992244761,0.60434124,60885.0,60884.0,0.007]
[1727992245403,0.60434124,60885.0,60884.0,0.001]
[1727992245866,0.60434124,60885.0,60884.0,0.006]
[1727992246084,0.60434124,60885.0,60884.0,0.001]
[1727992246323,0.55063569,60885.0,60884.0,0.003]
[1727992246536,0.55063569,60885.0,60884.0,0.001]
[1727992246776,0.55063569,60885.0,60877.0,0.24634789]
[1727992246777,0.28839169,60885.0,60877.0,0.24634789]
[1727992246996,0.164262,60878.0,60877.0,0.24634789]
[1727992247469,0.164268,60876.0,60875.0,0.00431174]
[1727992247895,0.164268,60876.0,60872.0,0.28683722]
[1727992248123,0.164268,60876.0,60872.0,0.45002393]
[1727992248774,0.164268,60876.0,60875.0,0.005]
[1727992250061,0.164276,60873.0,60872.0,0.12256022]
[1727992250296,0.164276,60873.0,60872.0,0.12556022]
[1727992250723,0.164276,60873.0,60872.0,0.12256022]
[1727992250946,0.164276,60873.0,60872.0,0.12677434]
[1727992251159,0.589429,60873.0,60872.0,0.009]
[1727992251808,0.589429,60873.0,60872.0,0.014]
[1727992252484,0.589429,60873.0,60872.0,0.005]
[1727992252706,0.589429,60873.0,60872.0,0.01]
[1727992253126,0.589429,60873.0,60872.0,0.005]
[1727992253347,0.589429,60873.0,60872.0,0.006]
[1727992254487,0.664629,60873.0,60872.0,0.006]
[1727992254714,0.54204897,60873.0,60872.0,0.006]
[1727992254910,0.492829,60873.0,60872.0,0.006]
[1727992255604,0.492829,60873.0,60872.0,0.001]
[1727992256030,0.494829,60873.0,60872.0,0.001]
[1727992256469,0.494829,60873.0,60872.0,0.12356022]
[1727992256470,0.168276,60873.0,60872.0,0.12356022]
[1727992256685,0.168276,60873.0,60872.0,0.12256022]
[1727992256686,0.166276,60873.0,60872.0,0.12256022]
[1727992256906,0.167276,60873.0,60872.0,0.12256022]
[1727992257549,0.166276,60873.0,60872.0,0.12356022]
[1727992257730,0.166276,60873.0,60872.0,0.12456022]
[1727992258214,0.002,60873.0,60872.0,0.12456022]
[1727992259271,0.164274,60874.0,60872.0,0.12356022]
[1727992259691,0.164274,60874.0,60872.0,0.12856022]
[1727992260373,0.16427,60876.0,60872.0,0.12756022]
[1727992260597,0.492808,60876.0,60872.0,0.12256022]
[1727992260810,0.164275,60874.0,60872.0,0.004]
[1727992261029,0.328539,60876.0,60872.0,0.004818]
[1727992261030,0.164276,60873.0,60872.0,0.004818]
[1727992261305,0.0966,60876.0,60872.0,0.004818]
[1727992261513,0.164276,60873.0,60872.0,0.004818]
[1727992262141,0.164276,60873.0,60872.0,0.000818]
[1727992262319,0.164276,60873.0,60872.0,0.004818]
[1727992262551,0.164276,60873.0,60872.0,0.000818]
[1727992262932,0.164276,60873.0,60872.0,0.002818]
[1727992263374,0.165276,60873.0,60872.0,0.002818]
[1727992275894,0.19102582,60873.0,60872.0,0.002818]
[1727992276809,0.165276,60873.0,60872.0,0.002818]
[1727992277240,0.165276,60873.0,60872.0,0.094918]
[1727992279950,0.165276,60873.0,60872.0,0.002818]
[1727992287219,0.21452506,60873.0,60872.0,0.002818]
[1727992287648,0.24027554,60873.0,60872.0,0.002818]
[1727992288305,0.19102648,60873.0,60872.0,0.002818]
[1727992289240,0.26496188,60873.0,60872.0,0.002818]
[1727992290358,0.26496188,60873.0,60872.0,0.083118]
[1727992291958,0.2392114,60873.0,60872.0,0.083118]
[1727992292165,0.165276,60873.0,60872.0,0.083118]
[1727992293271,0.3751976,60873.0,60872.0,0.083118]
[1727992293491,0.47377813,60873.0,60872.0,0.083118]
[1727992295255,0.3751976,60873.0,60872.0,0.083118]
[1727992297167,0.49842327,60873.0,60872.0,0.083118]
[1727992297375,0.3751976,60873.0,60872.0,0.002818]
[1727992297825,0.42889686,60873.0,60872.0,0.002818]
[1727992299633,0.45464739,60873.0,60872.0,0.002818]
[1727992300311,0.52430806,60873.0,60872.0,0.002818]
[1727992300739,0.49855753,60873.0,60872.0,0.002818]
[1727992302075,0.4288389,60873.0,60872.0,0.002818]
[1727992302949,0.5115389,60873.0,60872.0,0.002818]
[1727992303869,0.8044957,60873.0,60872.0,0.002818]
[1727992304091,0.8302478,60873.0,60872.0,0.002818]
[1727992304314,0.537291,60873.0,60872.0,0.002818]
[1727992304529,0.97830469,60873.0,60872.0,0.002818]
[1727992304739,0.68534789,60873.0,60872.0,0.002818]
[1727992305432,0.537291,60873.0,60872.0,0.002818]
[1727992305656,0.83019725,60873.0,60872.0,0.002818]
[1727992308620,0.80444515,60873.0,60872.0,0.002818]
[1727992309972,0.5115389,60873.0,60872.0,0.002818]
[1727992311078,0.65948082,60873.0,60872.0,0.002818]
[1727992311545,0.5115389,60873.0,60872.0,0.002818]
[1727992311768,0.80365054,60873.0,60872.0,0.002818]
[1727992311960,0.82940296,60873.0,60872.0,0.002818]
[1727992313033,0.82940296,60873.0,60872.0,0.000818]
[1727992313255,0.83040296,60873.0,60872.0,0.000818]
[1727992313755,0.83340296,60873.0,60872.0,0.000818]
[1727992314196,0.83040296,60873.0,60872.0,0.000818]
[1727992314403,0.68918037,60873.0,60872.0,0.000818]
[1727992315292,0.98243339,60873.0,60872.0,0.000818]
[1727992315532,0.68918037,60873.0,60872.0,0.000818]
[1727992316449,0.66342795,60873.0,60872.0,0.000818]
[1727992319762,0.60648036,60873.0,60872.0,0.000818]
[1727992320502,0.45859131,60873.0,60872.0,0.000818]
[1727992321016,0.4328389,60873.0,60872.0,0.000818]
[1727992324108,0.45859109,60873.0,60872.0,0.000818]
[1727992326502,0.4328389,60873.0,60872.0,0.000818]
[1727992327659,0.43235184,60873.0,60872.0,0.000818]
[1727992328338,0.43235184,60873.0,60872.0,0.079718]
[1727992328581,0.37865305,60873.0,60872.0,0.079718]
[1727992328795,0.47719405,60873.0,60872.0,0.079718]
[1727992329008,0.24318154,60873.0,60872.0,0.176518]
[1727992329450,0.37926349,60873.0,60872.0,0.176518]
[1727992329662,0.169276,60873.0,60872.0,0.176518]
[1727992329888,0.24318221,60873.0,60872.0,0.176518]
[1727992330100,0.47760569,60873.0,60872.0,0.176518]
[1727992330792,0.24318598,60873.0,60872.0,0.176518]
[1727992331244,0.24318598,60873.0,60872.0,0.18421071]
[1727992331948,0.169276,60873.0,60872.0,0.18421071]
[1727992332378,0.005,60873.0,60872.0,0.18421071]
[1727992332623,0.003,60873.0,60872.0,0.18421071]
[1727992332856,0.07390983,60876.0,60872.0,0.18421071]
[1727992332857,0.04927292,60876.0,60872.0,0.00851071]
[1727992333080,0.04927292,60876.0,60874.0,0.1757]
[1727992333081,0.164271,60875.0,60874.0,0.1757]
[1727992333294,0.04927292,60876.0,60873.0,0.1757]
[1727992333541,0.04927292,60876.0,60874.0,0.0076723]
[1727992333779,0.04927292,60876.0,60875.0,0.1757]
[1727992334035,0.04927292,60876.0,60875.0,0.46253122]
[1727992334245,0.26280844,60879.0,60875.0,0.46253122]
[1727992334246,0.04927292,60877.0,60876.0,0.164268]
[1727992334431,0.05090892,60880.0,60878.0,0.164261]
[1727992334668,0.05090892,60880.0,60879.0,0.29826022]
[1727992334885,0.001636,60880.0,60879.0,0.3059271]
[1727992335845,0.001636,60880.0,60879.0,0.63337381]
[1727992336720,0.001636,60880.0,60879.0,0.63537381]
[1727992336968,0.003636,60880.0,60879.0,0.63337381]
[1727992337220,0.003636,60880.0,60879.0,0.63537381]
[1727992337442,0.003636,60880.0,60879.0,0.63337381]
[1727992337657,0.003636,60880.0,60879.0,0.64137381]
[1727992338303,0.001636,60880.0,60879.0,0.64137381]
[1727992338529,0.001636,60880.0,60879.0,0.64537381]
[1727992342790,0.001636,60880.0,60879.0,0.66837381]
[1727992356088,0.001636,60880.0,60879.0,0.66919181]
[1727992376018,0.001636,60880.0,60879.0,0.66119181]
[1727992376240,0.001636,60880.0,60879.0,0.67119181]
[1727992376493,0.001636,60880.0,60879.0,0.68219181]
[1727992376912,0.001636,60880.0,60879.0,0.67119181]
[1727992377361,0.001636,60880.0,60879.0,0.68319181]
[1727992386472,0.001636,60880.0,60879.0,0.56063159]
[1727992386703,0.001636,60880.0,60879.0,0.68319181]
[1727992406085,0.001636,60880.0,60879.0,0.68519181]
[1727992406761,0.001636,60880.0,60879.0,0.68319181]
[1727992409254,0.001636,60880.0,60879.0,0.6854058]
[1727992431122,0.001636,60880.0,60879.0,0.73465927]
[1727992431373,0.001636,60880.0,60879.0,0.56284558]
[1727992431608,0.001636,60880.0,60879.0,0.73468258]
[1727992434703,0.001636,60880.0,60879.0,0.55898258]
[1727992440661,0.001636,60880.0,60879.0,0.55898518]
[1727992442746,0.24798389,60886.0,60885.0,0.164244]
[1727992442980,0.24798389,60886.0,60885.0,0.32743071]
[1727992443208,0.001636,60886.0,60885.0,0.33752452]
[1727992444594,0.001636,60886.0,60885.0,0.34752452]
[1727992445505,0.001636,60886.0,60885.0,0.35352452]